bitfinex/quotes_ETHUSD_20250725
["timestamp","ask_amount","ask_price","bid_price","bid_amount"]
[1753423590178,33.41960096,3620.7,3620.6,1e-08]
[1753423590542,29.11260096,3620.7,3620.6,1e-08]
[1753423590742,33.41960096,3620.7,3620.6,1e-08]
[1753423591144,34.72580096,3620.7,3620.6,1e-08]
[1753423591371,35.15710096,3620.7,3620.6,1e-08]
[1753423591778,35.29550096,3620.7,3620.6,1e-08]
[1753423591988,35.29550096,3620.7,3619.6,0.1384]
[1753423591989,4.3059,3620.1,3619.6,0.1384]
[1753423592192,6.31304155,3619.2,3619.1,0.04]
[1753423592394,10.77944155,3619.2,3619.1,0.04]
[1753423593103,11.78746549,3619.2,3619.1,0.04]
[1753423593261,12.70316549,3619.2,3619.1,1e-08]
[1753423593593,7.94386549,3619.2,3619.1,1e-08]
[1753423593805,8.37516549,3619.2,3619.1,1e-08]
[1753423594010,12.71216549,3619.2,3619.1,1e-08]
[1753423594161,8.37516549,3619.2,3619.1,1e-08]
[1753423594686,12.71216549,3619.2,3619.1,1e-08]
[1753423595261,8.37516549,3619.2,3619.1,1e-08]
[1753423595560,11.00076549,3619.2,3619.1,1e-08]
[1753423595760,6.66276549,3619.2,3619.1,1e-08]
[1753423595997,0.4313,3619.9,3619.1,1e-08]
[1753423595998,7.187,3619.5,3619.1,0.25270001]
[1753423596212,2.76304155,3619.2,3619.1,0.13840001]
[1753423596514,10.31437925,3619.2,3619.1,1e-08]
[1753423596798,10.86437925,3619.2,3619.1,1e-08]
[1753423597091,6.52437925,3619.2,3619.1,1e-08]
[1753423597316,10.65304155,3619.2,3619.1,1e-08]
[1753423597472,11.2075023,3619.2,3619.1,1e-08]
[1753423597676,10.79144155,3619.2,3619.1,1e-08]
[1753423598409,7.888,3619.2,3619.1,1e-08]
[1753423598579,4.34,3619.2,3619.1,0.56930001]
[1753423599385,7.34,3619.2,3619.1,0.56930001]
[1753423599589,10.10304155,3619.2,3619.1,0.57030001]
[1753423599795,7.34,3619.2,3619.1,0.57030001]
[1753423600686,3.0,3619.2,3619.1,0.57030001]
[1753423601018,7.341,3619.2,3619.1,3.70667566]
[1753423601227,3.0,3619.2,3619.1,3.70667566]
[1753423601430,7.337,3619.2,3619.1,3.96737566]
[1753423601981,7.337,3619.2,3619.1,1.20425776]
[1753423602221,7.337,3619.2,3619.1,3.96737566]
[1753423602993,4.337,3619.2,3619.1,3.96737566]
[1753423603728,4.337,3619.2,3619.1,0.83100001]
[1753423604835,7.337,3619.2,3619.1,0.83100001]
[1753423605221,7.337,3619.2,3619.1,0.51440001]
[1753423605527,7.337,3619.2,3619.1,0.00100001]
[1753423605528,10.65004155,3619.2,3619.1,0.00100001]
[1753423605903,11.76852998,3619.2,3619.1,0.00100001]
[1753423606103,12.52342998,3619.2,3619.1,1e-08]
[1753423606328,12.52342998,3619.2,3616.6,9.66673255]
[1753423606329,33.1033884,3619.2,3617.1,0.6093]
[1753423606637,6.3138052,3618.2,3617.5,0.2607]
[1753423606803,10.6558052,3618.2,3617.5,0.2607]
[1753423608097,10.6558052,3618.2,3617.1,0.87]
[1753423608916,11.5774052,3618.2,3617.1,0.87]
[1753423609105,11.5774052,3618.2,3617.1,0.04]
[1753423609106,1.3208,3617.2,3617.1,0.04]
[1753423609321,4.9,3617.2,3617.1,0.04]
[1753423609520,7.9,3617.2,3617.1,0.04]
[1753423609921,10.66456928,3617.2,3617.1,0.04]
[1753423610123,7.9,3617.2,3617.1,0.04]
[1753423610637,7.348,3617.2,3617.1,0.04]
[1753423611203,7.348,3617.2,3617.1,0.6093]
[1753423611724,7.347,3617.2,3617.1,3.37394571]
[1753423611924,7.347,3617.2,3617.1,4.28851917]
[1753423613354,3.0,3617.2,3617.1,4.28851917]
[1753423613553,0.4653,3619.0,3617.2,2.76451701]
[1753423613723,0.4653,3619.0,3617.5,0.3007]
[1753423613724,4.347,3618.9,3617.5,0.3007]
[1753423614057,4.347,3618.9,3617.6,0.59694263]
[1753423614254,2.76348713,3618.7,3617.8,2.76405244]
[1753423614458,4.37447949,3618.6,3617.5,0.3007]
[1753423614620,3.55,3617.7,3617.1,0.3407]
[1753423614820,3.0,3617.5,3617.1,0.3407]
[1753423615040,3.0,3617.3,3617.1,3.10528824]
[1753423615238,0.55,3617.7,3617.1,3.10528824]
[1753423615239,7.349,3617.2,3617.1,3.42188824]
[1753423615523,7.349,3617.2,3617.1,0.5934]
[1753423615717,7.349,3617.2,3617.1,0.3407]
[1753423615923,7.349,3617.2,3617.1,3.24374571]
[1753423616458,7.349,3617.2,3617.1,4.44555902]
[1753423617320,7.349,3617.2,3617.1,0.4791]
[1753423617925,7.346,3617.2,3617.1,0.4791]
[1753423618178,7.346,3617.2,3617.1,3.24374571]
[1753423618463,7.346,3617.2,3617.1,3.81304571]
[1753423618464,7.351,3617.2,3617.1,3.81304571]
[1753423619369,3.0,3617.2,3617.1,3.81304571]
[1753423619670,7.355,3617.2,3617.1,4.47083008]
[1753423622068,7.355,3617.2,3617.1,3.60083008]
[1753423622469,7.355,3617.2,3617.1,3.91743008]
[1753423622646,7.355,3617.2,3617.1,4.17113008]
[1753423623245,3.0,3617.2,3617.1,4.17113008]
[1753423623449,7.348,3617.2,3617.1,4.17113008]
[1753423623943,3.0,3617.2,3617.1,4.47183008]
[1753423624147,0.35072503,3618.6,3617.2,0.3007]
[1753423624373,2.97584057,3618.6,3617.9,2.76398135]
[1753423624588,0.7728,3618.7,3618.1,0.1384]
[1753423624589,4.347,3618.5,3618.1,0.1384]
[1753423624773,2.76370687,3618.4,3618.1,0.1384]
[1753423624972,3.0,3618.2,3617.6,2.76421105]
[1753423625187,3.0,3618.4,3618.3,0.1384]
[1753423625391,7.353,3618.4,3618.1,0.1384]
[1753423625551,7.353,3618.4,3618.3,0.1384]
[1753423625888,10.11665244,3618.4,3618.3,0.1384]
[1753423626887,7.353,3618.4,3618.3,0.1384]
[1753423627311,7.35,3618.4,3618.3,0.1384]
[1753423628223,10.11365244,3618.4,3618.3,0.1384]
[1753423628906,7.347,3618.4,3618.3,0.1384]
[1753423631357,7.344,3618.4,3618.3,0.1384]
[1753423633156,7.343,3618.4,3618.3,0.1384]
[1753423633303,3.0,3618.4,3618.3,0.1384]
[1753423633499,7.341,3618.4,3618.3,0.1384]
[1753423633702,3.0,3618.4,3618.3,2.90212882]
[1753423633903,0.13448886,3618.7,3618.3,1.02160682]
[1753423634114,4.34,3618.6,3618.3,0.455]
[1753423634335,3.0,3618.5,3618.4,2.76365244]
[1753423634503,4.34,3618.6,3618.5,2.76357606]
[1753423634708,7.191,3619.0,3618.6,0.3007]
[1753423634931,7.191,3619.0,3618.7,2.76341782]
[1753423634932,7.34,3618.9,3618.7,2.76341782]
[1753423635304,7.34,3618.9,3618.8,0.1384]
[1753423635827,3.0,3618.9,3618.8,0.1384]
[1753423636038,4.338,3618.9,3618.8,2.90174696]
[1753423636729,7.338,3618.9,3618.8,2.90174696]
[1753423636931,7.338,3618.9,3618.8,3.49833524]
[1753423637268,3.0,3618.9,3618.8,3.49833524]
[1753423637539,7.336,3618.9,3618.8,2.90174696]
[1753423639557,3.0,3618.9,3618.8,3.77174696]
[1753423639772,7.335,3618.9,3618.8,3.20244696]
[1753423640251,4.335,3618.9,3618.8,3.77174696]
[1753423640416,4.335,3618.9,3618.8,4.42526828]
[1753423640616,7.335,3618.9,3618.8,4.42526828]
[1753423640850,7.331,3618.9,3618.8,4.42526828]
[1753423641559,0.002,3619.2,3618.8,4.42526828]
[1753423641560,0.002,3619.2,3619.1,2.7631179]
[1753423641764,4.335,3619.2,3619.1,3.0638179]
[1753423641946,4.335,3619.2,3619.1,4.69590754]
[1753423642146,1e-08,3619.2,3619.1,4.69590754]
[1753423642447,4.33200001,3619.2,3619.1,4.69590754]
[1753423642619,4.33200001,3619.2,3619.1,0.4391]
[1753423642819,7.33200001,3619.2,3619.1,2.9015179]
[1753423644061,7.33200001,3619.2,3619.1,0.1384]
[1753423644840,11.05574156,3619.2,3619.1,0.1384]
[1753423645055,0.7844,3618.7,3618.0,2.76390926]
[1753423645255,3.0,3618.5,3618.1,0.001]
[1753423645568,6.72420882,3618.6,3618.4,0.1384]
[1753423645766,5.2947,3618.5,3618.4,0.1384]
[1753423645927,8.2947,3618.5,3618.4,0.1384]
[1753423646148,11.05827606,3618.5,3618.4,0.1384]
[1753423647383,8.2947,3618.5,3618.4,0.1384]
[1753423647897,3.0,3618.5,3618.4,0.1384]
[1753423648065,7.334,3618.5,3618.4,0.1384]
[1753423648962,7.334,3618.5,3618.4,2.90205244]
[1753423649610,3.0,3618.5,3618.4,3.76943811]
[1753423649902,7.332,3618.5,3618.4,4.08603811]
[1753423650084,7.332,3618.5,3618.4,3.20275244]
[1753423650408,1e-08,3619.2,3618.7,2.76339126]
[1753423650554,4.331,3619.1,3618.9,2.76324954]
[1753423650753,4.331,3619.1,3618.4,0.4391]
[1753423650754,3.0,3619.0,3618.5,2.76357606]
[1753423650969,3.0,3619.0,3618.6,2.76349969]
[1753423651171,3.0,3618.8,3618.7,2.76342332]
[1753423651545,1e-08,3619.2,3618.7,2.76342332]
[1753423651546,1e-08,3619.2,3618.8,2.76334023]
[1753423651795,1e-08,3619.2,3618.7,0.1384]
[1753423651952,4.328,3619.1,3619.0,2.76316713]
[1753423652152,1e-08,3619.2,3619.0,2.76316713]
[1753423652351,1e-08,3619.2,3619.1,2.9015179]
[1753423652554,7.32800001,3619.2,3619.1,0.1384]
[1753423653587,8.28870001,3619.2,3619.1,0.1384]
[1753423653792,11.82054156,3619.2,3619.1,0.1384]
[1753423654424,12.37054156,3619.2,3619.1,0.1384]
[1753423654576,0.7864,3618.7,3618.4,0.1384]
[1753423654780,0.78640001,3619.2,3618.3,0.3007]
[1753423655099,3.0,3619.0,3618.3,0.3007]
[1753423655298,3.0,3618.8,3618.3,3.06442164]
[1753423655517,3.0,3618.8,3618.4,2.76365244]
[1753423655714,3.0,3618.6,3618.5,2.76356136]
[1753423655920,4.336,3618.6,3618.4,0.58290741]
[1753423656126,7.335,3618.5,3618.4,2.76365244]
[1753423656421,7.336,3618.5,3618.4,2.76365244]
[1753423656976,1e-08,3619.2,3619.1,2.7631179]
[1753423657181,4.33400001,3619.2,3618.8,2.76333572]
[1753423657382,3.0,3619.1,3618.8,2.76333572]
[1753423657582,3.0,3618.9,3618.3,0.3007]
[1753423657784,3.0,3618.7,3618.3,0.3007]
[1753423657981,3.0,3618.7,3618.1,0.001]
[1753423657982,3.0,3618.7,3618.6,2.76349969]
[1753423658207,3.0,3618.5,3618.1,0.001]
[1753423658482,3.0,3618.3,3618.1,0.001]
[1753423658713,7.343,3618.2,3618.1,0.001]
[1753423658922,8.3037,3618.2,3618.1,0.001]
[1753423659110,9.0931,3618.2,3618.1,0.001]
[1753423659787,11.8569052,3618.2,3618.1,0.001]
[1753423661618,11.8559052,3618.2,3618.1,0.001]
[1753423662220,9.0921,3618.2,3618.1,0.001]
[1753423662529,4.7501,3618.2,3618.1,0.001]
[1753423662821,8.1284,3618.2,3618.1,0.001]
[1753423663187,7.8332,3618.2,3618.1,0.001]
[1753423663388,7.339,3618.2,3618.1,0.001]
[1753423664135,7.339,3618.2,3618.1,2.76488159]
[1753423664344,10.5970052,3618.2,3618.1,0.001]
[1753423664630,9.0964,3618.2,3618.1,0.001]
[1753423664990,9.0964,3618.2,3618.1,0.1394]
[1753423665189,11.8602052,3618.2,3618.1,0.1394]
[1753423666031,9.0964,3618.2,3618.1,0.1394]
[1753423666325,8.76790122,3618.2,3618.1,0.1394]
[1753423666543,1.2909,3618.7,3618.1,0.1394]
[1753423666695,4.338,3618.6,3618.1,2.90328159]
[1753423666890,3.9068,3618.5,3618.1,0.001]
[1753423667128,3.4522052,3618.2,3618.1,0.001]
[1753423667288,10.6528052,3618.2,3618.1,0.001]
[1753423667494,12.4506052,3618.2,3618.1,0.001]
[1753423667995,19.64060517,3618.2,3618.1,1e-08]
[1753423668219,19.66560517,3618.2,3618.1,1e-08]
[1753423668419,7.11446928,3617.2,3617.1,0.04]
[1753423668631,11.61586928,3617.2,3617.1,0.04]
[1753423668838,12.52266928,3617.2,3617.1,0.04]
[1753423669226,3.7999,3617.2,3617.1,0.04]
[1753423669423,8.6401,3617.2,3617.1,0.1784]
[1753423669618,8.1629,3617.2,3617.1,0.1784]
[1753423669905,7.363,3617.2,3617.1,0.1784]
[1753423670102,7.366,3617.2,3617.1,0.1784]
[1753423670554,7.365,3617.2,3617.1,0.1784]
[1753423671124,3.0,3617.2,3617.1,0.1784]
[1753423671328,7.191,3617.5,3617.1,2.94304571]
[1753423671516,7.191,3617.5,3617.4,3.06511643]
[1753423671716,7.191,3617.5,3617.4,3.20351643]
[1753423671945,10.191,3617.5,3617.4,3.20351643]
[1753423672239,14.554,3617.5,3617.4,3.20351643]
[1753423673220,3.0,3617.4,3617.1,0.04]
[1753423673514,3.0,3617.4,3617.3,2.76449285]
[1753423673848,7.369,3617.4,3617.3,3.62210481]
[1753423674033,3.0,3618.1,3617.3,1.11031196]
[1753423674235,3.0,3617.9,3617.4,2.76441643]
[1753423674533,7.18999997,3618.2,3617.6,2.7642636]
[1753423674534,3.0,3617.7,3617.6,2.7642636]
[1753423675047,3.0,3617.7,3617.3,0.3007]
[1753423675245,3.0,3617.5,3617.1,0.04]
[1753423675547,3.0,3617.3,3617.1,0.04]
[1753423675708,4.369,3617.4,3617.1,0.04]
[1753423675709,7.37,3617.2,3617.1,0.04]
[1753423675911,7.8472,3617.2,3617.1,0.04]
[1753423676727,7.37,3617.2,3617.1,0.04]
[1753423677028,7.8472,3617.2,3617.1,0.04]
[1753423677217,9.1033,3617.2,3617.1,0.04]
[1753423677618,7.37,3617.2,3617.1,0.04]
[1753423677958,7.37,3617.2,3617.1,2.80464571]
[1753423678156,7.37,3617.2,3617.1,0.04]
[1753423678542,7.8472,3617.2,3617.1,0.04]
[1753423679317,7.37,3617.2,3617.1,2.80464571]
[1753423679756,7.37,3617.2,3617.1,0.04]
[1753423680655,3.0,3617.2,3617.1,0.04]
[1753423680840,7.369,3617.2,3617.1,2.80464571]
[1753423681153,0.4772,3618.0,3617.2,0.3007]
[1753423681452,0.4772,3618.0,3617.1,0.38255457]
[1753423681453,3.0,3617.8,3617.1,0.38255457]
[1753423681626,0.8086,3617.5,3617.1,0.04]
[1753423681832,3.0,3617.3,3617.1,0.04]
[1753423682018,7.371,3617.2,3617.1,0.04]
[1753423682217,7.371,3617.2,3617.1,2.80464571]
[1753423682654,7.373,3617.2,3617.1,2.80464571]
[1753423683316,7.373,3617.2,3617.1,2.94304571]
[1753423683521,7.373,3617.2,3617.1,3.83979379]
[1753423683744,7.372,3617.2,3617.1,3.83979379]
[1753423686479,3.0,3617.2,3617.1,3.83979379]
[1753423686654,7.367,3617.2,3617.1,3.83979379]
[1753423686854,7.367,3617.2,3617.1,4.43674024]
[1753423686855,3.0,3617.2,3617.1,4.43674024]
[1753423687056,3.0,3617.2,3617.1,4.40909379]
[1753423687263,7.367,3617.2,3617.1,4.40909379]
[1753423687663,0.7949,3618.5,3617.1,4.13602394]
[1753423687863,4.366,3618.4,3618.2,2.76379855]
[1753423688066,0.7949,3618.5,3618.2,2.76379855]
[1753423688067,3.0,3618.3,3618.2,2.76379855]
[1753423688243,0.4772,3619.1,3618.2,0.16603805]
[1753423688443,0.82020001,3619.2,3619.1,2.7631179]
[1753423688444,1e-08,3619.2,3619.1,2.7631179]
[1753423688681,4.36600001,3619.2,3619.1,2.7631179]
[1753423688843,7.36600001,3619.2,3619.1,2.7631179]
[1753423689046,4.36600001,3619.2,3619.1,2.7631179]
[1753423689247,4.36600001,3619.2,3619.0,0.1384]
[1753423689543,4.50043077,3619.2,3619.1,2.7631179]
[1753423689739,7.50043077,3619.2,3619.1,2.7631179]
[1753423689944,7.36600001,3619.2,3619.1,2.7631179]
[1753423690284,4.36600001,3619.2,3619.1,2.7631179]
[1753423692151,4.36600001,3619.2,3619.1,3.0638179]
[1753423692152,1e-08,3619.2,3619.1,3.0638179]
[1753423692353,4.36100001,3619.2,3619.1,3.63029518]
[1753423692697,1e-08,3619.2,3619.1,3.63029518]
[1753423692893,4.36100001,3619.2,3619.1,4.19959518]
[1753423693063,4.36100001,3619.2,3619.1,3.63029518]
[1753423693780,4.36500001,3619.2,3619.1,3.63029518]
[1753423695861,4.36500001,3619.2,3619.1,4.19959518]
[1753423696764,4.36500001,3619.2,3619.1,3.88299518]
[1753423697097,4.36500001,3619.2,3619.1,13.86632773]
[1753423697098,1e-08,3619.2,3619.1,13.86632773]
[1753423697697,4.37200001,3619.2,3619.1,13.86632773]
[1753423698566,1e-08,3619.2,3619.1,13.86632773]
[1753423698779,4.37200001,3619.2,3619.1,13.86632773]
[1753423699180,4.37000001,3619.2,3619.1,13.86632773]
[1753423700008,4.36900001,3619.2,3619.1,13.86632773]
[1753423700711,0.04,3619.9,3619.8,2.76258356]
[1753423700896,7.408,3619.9,3619.8,3.33954192]
[1753423701096,7.408,3619.9,3619.8,3.47794192]
[1753423701295,7.408,3619.9,3619.8,3.17724192]
[1753423701797,3.04,3619.9,3619.8,3.17724192]
[1753423702114,7.407,3619.9,3619.8,3.17724192]
[1753423702804,0.04,3619.9,3619.8,3.17724192]
[1753423703007,0.04,3619.9,3619.8,3.20486775]
[1753423703194,4.404,3619.9,3619.8,3.17724192]
[1753423704817,4.404,3619.9,3619.8,2.90098356]
[1753423704979,5.3276,3619.9,3619.8,2.90098356]
[1753423705184,8.3276,3619.9,3619.8,0.1384]
[1753423705422,11.92300725,3619.9,3619.8,0.1384]
[1753423705616,0.8329,3619.7,3618.9,2.76321138]
[1753423705944,0.9236,3619.6,3619.1,2.76307125]
[1753423706080,0.9236,3619.5,3619.0,2.76317868]
[1753423706281,3.9236,3619.4,3618.9,2.76325685]
[1753423706481,0.9236,3619.3,3618.7,2.76339015]
[1753423706717,0.4835,3619.2,3618.9,2.7632489]
[1753423706921,0.4401,3619.5,3619.2,0.1384]
[1753423707214,3.0,3619.3,3619.1,2.9014819]
[1753423707427,0.8329,3619.7,3618.9,2.7632489]
[1753423707623,0.4835,3619.3,3619.2,2.90142662]
[1753423707854,4.8021,3619.6,3618.9,0.30395879]
[1753423707855,0.4401,3619.6,3618.9,0.30395879]
[1753423708116,7.362,3619.3,3619.1,2.763091]
[1753423708284,4.362,3619.3,3619.1,2.763091]
[1753423708488,4.8021,3619.3,3619.2,0.1384]
[1753423708732,4.362,3619.3,3619.2,0.1384]
[1753423709091,4.8455,3619.3,3619.2,0.1384]
[1753423709293,5.2856,3619.3,3619.2,0.1384]
[1753423709720,8.2856,3619.3,3619.2,0.1384]
[1753423710231,9.07,3619.3,3619.2,0.1384]
[1753423711391,12.38296521,3619.3,3619.2,0.1384]
[1753423711725,7.07619969,3618.6,3618.5,0.1384]
[1753423711928,11.44619969,3618.6,3618.5,0.1384]
[1753423712085,12.36979969,3618.6,3618.5,0.1384]
[1753423712291,3.3138052,3618.2,3618.1,0.001]
[1753423712486,18.65678469,3618.2,3618.1,0.001]
[1753423712690,19.5529052,3618.2,3618.1,0.001]
[1753423714128,4.239,3618.2,3618.1,0.001]
[1753423714424,5.2986,3618.2,3618.1,0.1394]
[1753423714802,0.4835,3618.2,3618.1,2.90328159]
[1753423715038,4.374,3618.2,3618.1,0.1394]
[1753423715241,4.8575,3618.2,3618.1,0.1394]
[1753423715440,0.4835,3618.6,3618.2,2.7638052]
[1753423715736,3.0,3618.4,3618.1,2.76487817]
[1753423716112,3.0,3618.4,3618.3,0.1384]
[1753423716313,2.7638052,3618.2,3617.3,0.001]
[1753423716513,0.8097,3617.4,3617.3,0.001]
[1753423716724,5.1937,3617.4,3617.3,0.001]
[1753423716926,9.1173,3617.4,3617.3,0.1394]
[1753423717127,4.2932,3617.4,3617.3,2.90389285]
[1753423717329,7.384,3617.4,3617.3,0.1394]
[1753423717544,7.8675,3617.4,3617.3,0.1394]
[1753423718242,0.4835,3618.0,3617.3,0.43380385]
[1753423718442,5.21917949,3617.9,3617.3,0.1394]
[1753423718647,3.0,3617.8,3617.3,0.001]
[1753423718943,3.9236,3617.8,3617.3,0.001]
[1753423719146,3.0,3617.8,3617.7,0.1384]
[1753423719847,3.9236,3617.8,3617.7,0.1384]
[1753423720203,4.381,3617.8,3617.7,0.1384]
[1753423720439,8.3046,3617.8,3617.7,0.1384]
[1753423722656,7.376,3617.8,3617.7,0.1384]
[1753423722954,7.8595,3617.8,3617.7,0.1384]
[1753423724124,7.376,3617.8,3617.7,0.1384]
[1753423724448,7.373,3617.8,3617.7,0.1384]
[1753423724751,7.372,3617.8,3617.7,0.1384]
[1753423725419,8.2956,3617.8,3617.7,0.1384]
[1753423726254,8.2946,3617.8,3617.7,0.1384]
[1753423727267,3.0,3617.8,3617.7,0.1384]
[1753423727477,8.2978,3617.8,3617.7,0.1384]
[1753423727620,2.4851,3617.7,3616.1,0.04]
[1753423727818,7.13943377,3616.2,3616.1,0.04]
[1753423728028,18.72743377,3616.2,3616.1,0.04]
[1753423728335,4.7549,3616.2,3616.1,0.04]
[1753423728551,9.1519,3616.2,3616.1,0.1784]
[1753423728735,4.7549,3616.2,3616.1,0.1784]
[1753423729167,9.1539,3616.2,3616.1,0.1784]
[1753423729625,3.8241,3616.2,3616.1,0.1784]
[1753423729826,3.0,3616.2,3616.1,0.1784]
[1753423730254,7.398,3616.2,3616.1,0.1784]
[1753423730570,7.397,3616.2,3616.1,0.1784]
[1753423730863,3.0,3616.2,3616.1,2.94381024]
[1753423731063,3.0,3616.2,3616.1,4.37384576]
[1753423731729,7.193,3616.8,3616.7,2.76495147]
[1753423731925,14.588,3616.8,3616.7,2.76495147]
[1753423732129,7.395,3616.8,3616.7,2.90335147]
[1753423732542,7.395,3616.8,3616.7,0.1384]
[1753423732543,4.395,3616.8,3616.7,0.1384]
[1753423732943,3.0,3617.1,3617.0,2.76472214]
[1753423733151,0.61034655,3617.4,3617.3,2.76449285]
[1753423733462,4.393,3617.4,3617.0,0.1384]
[1753423733665,4.393,3617.4,3616.9,2.76472249]
[1753423733666,3.0,3617.3,3616.9,2.76472249]
[1753423733867,3.0,3617.4,3617.3,0.1384]
[1753423734161,7.8628,3617.4,3617.3,0.1384]
[1753423734549,7.8628,3617.4,3617.3,2.90289285]
[1753423735068,7.392,3617.4,3617.3,2.90289285]
[1753423736172,3.0,3617.4,3617.3,2.90289285]
[1753423736369,7.39,3617.4,3617.3,2.90289285]
[1753423736567,7.39,3617.4,3617.3,0.1384]
[1753423737570,7.39,3617.4,3617.3,2.90289285]
[1753423737873,7.385,3617.4,3617.3,2.90289285]
[1753423738077,7.385,3617.4,3617.3,0.1384]
[1753423738078,3.4708,3617.4,3617.3,0.1384]
[1753423738446,3.0,3617.4,3617.3,2.90289285]
[1753423738775,7.384,3617.4,3617.3,2.90289285]
[1753423739470,3.0,3617.4,3617.3,2.90289285]
[1753423739656,7.384,3617.4,3617.3,2.90289285]
[1753423740001,7.384,3617.4,3617.3,0.1384]
[1753423740276,7.382,3617.4,3617.3,0.1384]
[1753423740935,3.0,3617.4,3617.3,0.1384]
[1753423741494,8.3088,3617.4,3617.3,0.1384]
[1753423741640,9.1088,3617.4,3617.3,0.1384]
[1753423741950,9.1088,3617.4,3616.6,2.76596104]
[1753423741951,3.31455164,3617.3,3617.1,0.1384]
[1753423742159,10.69256928,3617.2,3617.1,0.1384]
[1753423742337,11.62336928,3617.2,3617.1,0.1384]
[1753423742541,8.8588,3617.2,3617.1,0.1384]
[1753423743044,7.38,3617.2,3617.1,0.1384]
[1753423743254,11.62336928,3617.2,3617.1,0.1384]
[1753423743864,8.8588,3617.2,3617.1,0.1384]
[1753423744068,11.62336928,3617.2,3617.1,0.1384]
[1753423745086,3.4708,3617.2,3617.1,0.1384]
[1753423745452,7.8478,3617.2,3617.1,0.1384]
[1753423745676,7.376,3617.2,3617.1,2.90304571]
[1753423746184,3.0,3617.2,3617.1,2.90304571]
[1753423746346,7.375,3617.2,3617.1,2.90304571]
[1753423746550,3.0,3617.2,3617.1,2.90304571]
[1753423746777,7.374,3617.2,3617.1,2.90304571]
[1753423747688,3.0,3617.2,3617.1,2.90304571]
[1753423747855,7.374,3617.2,3617.1,2.90304571]
[1753423748687,3.0,3617.2,3617.1,2.90304571]
[1753423748990,7.373,3617.2,3617.1,2.90304571]
[1753423749561,3.0,3617.2,3617.1,3.93782697]
[1753423749794,3.0,3617.2,3617.1,4.32892697]
[1753423750289,7.37,3617.2,3617.1,4.32892697]
[1753423750801,7.37,3617.2,3617.1,3.46982697]
[1753423750802,7.369,3617.2,3617.1,3.46982697]
[1753423750976,7.369,3617.2,3617.1,2.90304571]
[1753423751710,3.0,3617.2,3617.1,2.90304571]
[1753423751890,7.369,3617.2,3617.1,2.90304571]
[1753423752200,7.368,3617.2,3617.1,4.06284571]
[1753423752405,7.368,3617.2,3617.1,3.88650697]
[1753423752874,7.367,3617.2,3617.1,3.88650697]
[1753423753282,7.367,3617.2,3617.1,4.74560697]
[1753423753481,7.367,3617.2,3617.1,3.88650697]
[1753423753667,8.2978,3617.2,3617.1,0.1384]
[1753423753869,8.2998,3617.2,3617.1,0.1384]
[1753423754790,3.9308,3617.2,3617.1,0.1384]
[1753423754989,8.2988,3617.2,3617.1,0.1384]
[1753423757524,3.0,3617.2,3617.1,0.1384]
[1753423757712,7.8438,3617.2,3617.1,0.1384]
[1753423758004,7.365,3617.2,3617.1,0.1384]
[1753423758383,7.8448,3617.2,3617.1,0.1384]
[1753423758583,8.3002,3617.2,3617.1,0.1384]
[1753423759828,7.8448,3617.2,3617.1,0.1384]
[1753423760334,7.365,3617.2,3617.1,2.90304571]
[1753423761135,7.36,3617.2,3617.1,2.90304571]
[1753423761335,7.359,3617.2,3617.1,2.90304571]
[1753423763996,7.355,3617.2,3617.1,2.90304571]
[1753423764637,7.355,3617.2,3617.1,0.1384]
[1753423765014,7.353,3617.2,3617.1,0.1384]
[1753423765217,7.353,3617.2,3617.1,2.90304571]
[1753423767042,3.0,3617.2,3617.1,0.1384]
[1753423767218,7.351,3617.2,3617.1,0.1384]
[1753423767418,7.351,3617.2,3617.1,2.90304571]
[1753423769460,7.346,3617.2,3617.1,2.90304571]
[1753423769758,3.0,3617.2,3617.1,3.46992869]
[1753423770057,7.346,3617.2,3617.1,3.46992869]
[1753423771546,3.0,3617.2,3617.1,3.46992869]
[1753423771846,7.344,3617.2,3617.1,3.46992869]
[1753423772050,7.344,3617.2,3617.1,2.90304571]
[1753423773153,3.0,3617.2,3617.1,2.90304571]
[1753423773312,7.344,3617.2,3617.1,2.90304571]
[1753423773881,3.0,3617.2,3617.1,3.33784571]
[1753423774031,7.342,3617.2,3617.1,3.33784571]
[1753423774566,7.342,3617.2,3617.1,2.90304571]
[1753423774969,7.342,3617.2,3617.1,3.55251372]
[1753423775270,7.341,3617.2,3617.1,4.37841372]
[1753423776363,3.0,3617.2,3617.1,4.37841372]
[1753423776568,7.338,3617.2,3617.1,4.37841372]
[1753423776940,3.0,3617.2,3617.1,4.37841372]
[1753423777147,7.336,3617.2,3617.1,4.67911372]
[1753423777764,7.336,3617.2,3617.1,3.85321372]
[1753423778173,7.335,3617.2,3617.1,4.67911372]
[1753423778328,7.335,3617.2,3617.1,3.85321372]
[1753423778769,7.335,3617.2,3617.1,4.28801372]
[1753423779270,3.0,3617.2,3617.1,4.28801372]
[1753423779565,7.334,3617.2,3617.1,4.28801372]
[1753423781043,7.334,3617.2,3617.1,4.67911372]
[1753423781330,7.336,3617.2,3617.1,4.67911372]
[1753423781538,7.336,3617.2,3617.1,3.85321372]
[1753423781864,8.2712,3617.2,3617.1,2.90304571]
[1753423783178,8.2712,3617.2,3617.1,0.1384]
[1753423783673,8.2712,3617.2,3617.1,2.90304571]
[1753423783877,8.2712,3617.2,3617.1,0.1384]
[1753423784881,9.5853,3617.2,3617.1,0.1384]